[Event "RUS-chTW Premier 2019"]
[Site "Sochi"]
[Date "2019.05.01"]
[Round "1.8"]
[White "Tishova, Svetlana"]
[Black "Guseva, Marina"]
[Result "0-1"]
[ECO "B51"]
[WhiteElo "2093"]
[BlackElo "2402"]
[Annotator "NA"]
[PlyCount "68"]
[EventDate "2019.04.30"]
[EventType "team-tourn"]
[EventCountry "RUS"]
[SourceTitle "playchess.com"]
[Source "ChessBase"]
[SourceQuality "1"]
[TimeControl "40/5400+30:1800+30"]

1. e4 {[%emt 0:00:00]} c5 {[%emt 0:00:00]} 2. Nf3 {[%emt 0:00:00]} d6 {[%emt 0:00:00]} 3. Bb5+ {[%emt 0:00:00]} Nd7 {[%emt 0:00:00]} 4. d4 {[%emt 0:00:00]} cxd4 {[%emt 0:00:00]} 5. Qxd4 {[%emt 0:00:00]} a6 {[%emt 0:00:00]} 6. Be2 {[%emt 0:00:14]} e5 {[%emt 0:07:16]} 7. Qe3 {[%emt 0:03:17]} Ngf6 {[%emt 0:10:43]} 8. c4 {[%emt 0:00:19]} Be7 {[%emt 0:00:07]} 9. Nc3 {[%emt 0:00:12]} O-O {[%emt 0:00:04]} 10. O-O {[%emt 0:00:05]} Nc5 {[%emt 0:04:59]} 11. h3 {[%emt 0:03:20]} Bd7 {[%emt 0:04:43]} 12. Rd1 {[%emt 0:03:39]} Rc8 {[%emt 0:04:29]} 13. b3 {[%emt 0:06:22]} Qe8 {[%emt 0:04:11]} 14. Bb2 {[%emt 0:04:58]} h6 {[%emt 0:00:51]} 15. Nd2 {[%emt 0:02:12]} Ne6 {[%emt 0:05:34]} 16. Nf1 {[%emt 0:05:02]} Nd4 {[%emt 0:07:06]} 17. Qd2 {[%emt 0:01:40]} Bd8 {[%emt 0:05:03]} 18. Ne3 {[%emt 0:02:36]} Ba5 {[%emt 0:00:36]} 19. f3 {[%emt 0:00:41]} Be6 {[%emt 0:07:47]} 20. Bf1 {[%emt 0:02:44]} Bxh3 {[%emt 0:04:24]} 21. Qf2 {[%emt 0:01:20]} Be6 {[%emt 0:00:53]} 22. Ncd5 {[%emt 0:08:56]} Bxd5 {[%emt 0:03:07]} 23. cxd5 {[%emt 0:04:46]} Bb6 {[%emt 0:00:36]} 24. Bxd4 {[%emt 0:03:48]} Bxd4 {[%emt 0:00:15]} 25. Rxd4 {[%emt 0:14:00]} exd4 {[%emt 0:00:04]} 26. Nf5 {[%emt 0:00:05]} Qe5 {[%emt 0:06:22]} 27. Bd3 {[%emt 0:16:52]} Nd7 {[%emt 0:03:46]} 28. f4 {[%emt 0:03:38]} Qf6 {[%emt 0:00:05]} 29. Re1 {[%emt 0:01:52]} Rfe8 {[%emt 0:06:50]} 30. Bb1 {[%emt 0:04:49]} h5 {[%emt 0:03:43]} 31. g4 {[%emt 0:00:57]} hxg4 {[%emt 0:02:14]} 32. Qh2 {[%emt 0:01:03]} Qxf5 {[%emt 0:03:18]} 33. e5 {[%emt 0:02:15]} d3 {[%emt 0:00:15]} 34. Rd1 {[%emt 0:01:35]} dxe5 {[%emt 0:00:48]} 0-1

[Event "RUS-chTW Premier 2019"]
[Site "Sochi"]
[Date "2019.05.01"]
[Round "1.9"]
[White "Schepetkova, Margarita"]
[Black "Bodnaruk, Anastasia"]
[Result "1/2-1/2"]
[ECO "D71"]
[WhiteElo "2224"]
[BlackElo "2431"]
[Annotator "NA"]
[PlyCount "86"]
[EventDate "2019.04.30"]
[EventType "team-tourn"]
[EventCountry "RUS"]
[SourceTitle "playchess.com"]
[Source "ChessBase"]
[SourceQuality "1"]
[TimeControl "40/5400+30:1800+30"]

1. d4 Nf6 2. c4 g6 3. g3 Bg7 4. Bg2 c5 5. d5 {[%emt 0:01:41]} d6 {[%emt 0:00:33]} 6. Nf3 {[%emt 0:01:02]} O-O {[%emt 0:00:18]} 7. O-O {[%emt 0:00:11]} e6 {[%emt 0:00:10]} 8. Nc3 {[%emt 0:00:23]} exd5 {[%emt 0:00:13]} 9. cxd5 {[%emt 0:00:05]} Re8 {[%emt 0:00:40]} 10. Bf4 {[%emt 0:00:29]} h6 {[%emt 0:00:50]} 11. Qc1 {[%emt 0:00:30]} g5 {[%emt 0:01:00]} 12. Be3 {[%emt 0:04:59]} Bf5 {[%emt 0:01:56]} 13. h4 {[%emt 0:10:29]} g4 {[%emt 0:01:49]} 14. Nd2 {[%emt 0:00:29]} Rxe3 {[%emt 0:10:53]} 15. fxe3 {[%emt 0:00:05]} Bg6 {[%emt 0:00:17]} 16. Nc4 {[%emt 0:08:43]} Qe7 {[%emt 0:09:48]} 17. e4 {[%emt 0:13:37]} Nh5 {[%emt 0:13:53]} 18. Qe1 {[%emt 0:09:10]} Nd7 {[%emt 0:06:51]} 19. Nb5 {[%emt 0:03:45]} Be5 {[%emt 0:09:05]} 20. Nxe5 {[%emt 0:00:06]} Qxe5 {[%emt 0:00:50]} 21. Qc3 {[%emt 0:03:05]} Nxg3 {[%emt 0:19:21]} 22. Qxe5 {[%emt 0:02:38]} Nxe5 {[%emt 0:02:15]} 23. Nxd6 {[%emt 0:11:42]} Nxf1 {[%emt 0:02:33]} 24. Rxf1 {[%emt 0:00:07]} b6 {[%emt 0:04:16]} 25. h5 {[%emt 0:00:03]} Bh7 {[%emt 0:01:04]} 26. b3 {[%emt 0:02:05]} Kg7 {[%emt 0:07:25]} 27. Rf4 {[%emt 0:04:18]} f6 {[%emt 0:04:54]} 28. Kf2 {[%emt 0:06:37]} a6 {[%emt 0:02:04]} 29. Nc4 {[%emt 0:00:55]} Nxc4 {[%emt 0:00:56]} 30. Rxg4+ {[%emt 0:00:40]} Kf7 {[%emt 0:00:00]} 31. bxc4 {[%emt 0:00:06]} b5 {[%emt 0:00:05]} 32. Rf4 {[%emt 0:01:21]} Ke7 {[%emt 0:01:20]} 33. d6+ {[%emt 0:06:46]} Kxd6 {[%emt 0:00:35]} 34. Rxf6+ {[%emt 0:00:23]} Ke5 {[%emt 0:00:17]} 35. Rxh6 {[%emt 0:05:27]} Bxe4 {[%emt 0:00:06]} 36. Bxe4 {[%emt 0:01:01]} Kxe4 {[%emt 0:00:01]} 37. Rd6 {[%emt 0:00:28]} bxc4 {[%emt 0:00:46]} 38. h6 {[%emt 0:03:12]} c3 {[%emt 0:01:09]} 39. Rd3 {[%emt 0:00:00]} c2 {[%emt 0:00:00]} 40. Rc3 {[%emt 0:00:00]} Kd5 {[%emt 0:00:00]} 41. Ke3 {[%emt 0:05:43]} Rh8 {[%emt 0:01:49]} 42. Kd2 {[%emt 0:00:20]} Rxh6 {[%emt 0:00:57]} 43. Kxc2 {[%emt 0:02:36]} Rg6 {[%emt 0:06:10]} 1/2-1/2

[Event "RUS-chTW Premier 2019"]
[Site "Sochi"]
[Date "2019.05.01"]
[Round "1.10"]
[White "Ovod, Evgenija"]
[Black "Trapeznikova, Darya"]
[Result "1-0"]
[ECO "C55"]
[WhiteElo "2362"]
[BlackElo "2090"]
[Annotator "NA"]
[PlyCount "73"]
[EventDate "2019.04.30"]
[EventType "team-tourn"]
[EventCountry "RUS"]
[SourceTitle "playchess.com"]
[Source "ChessBase"]
[SourceQuality "1"]
[TimeControl "40/5400+30:1800+30"]

1. e4 {[%emt 0:00:00]} e5 {[%emt 0:00:00]} 2. Nf3 {[%emt 0:00:00]} Nc6 {[%emt 0:00:00]} 3. Bc4 {[%emt 0:00:00]} Nf6 {[%emt 0:00:09]} 4. d3 {[%emt 0:00:00]} Be7 {[%emt 0:00:15]} 5. O-O {[%emt 0:00:00]} O-O {[%emt 0:00:15]} 6. Re1 {[%emt 0:00:05]} d6 {[%emt 0:03:21]} 7. a4 {[%emt 0:00:07]} h6 {[%emt 0:02:16]} 8. a5 {[%emt 0:01:47]} Bg4 {[%emt 0:03:09]} 9. h3 {[%emt 0:02:24]} Bh5 {[%emt 0:00:49]} 10. c3 {[%emt 0:00:51]} Nd7 {[%emt 0:16:39]} 11. a6 {[%emt 0:12:28]} Qc8 {[%emt 0:16:01]} 12. g4 {[%emt 0:04:15]} Bg6 {[%emt 0:01:55]} 13. axb7 {[%emt 0:00:07]} Qxb7 {[%emt 0:00:07]} 14. Ba6 {[%emt 0:00:06]} Qb6 {[%emt 0:06:40]} 15. b4 {[%emt 0:00:36]} Nd8 {[%emt 0:03:35]} 16. Be3 {[%emt 0:01:05]} Qb8 {[%emt 0:00:15]} 17. Nbd2 {[%emt 0:03:59]} c6 {[%emt 0:01:44]} 18. Qb3 {[%emt 0:11:32]} Qc7 {[%emt 0:05:32]} 19. Ra3 {[%emt 0:01:22]} Nb6 {[%emt 0:07:25]} 20. Rea1 {[%emt 0:01:24]} Ne6 {[%emt 0:02:33]} 21. Bc4 {[%emt 0:03:46]} Nf4 {[%emt 0:02:49]} 22. Bxf4 {[%emt 0:00:23]} exf4 {[%emt 0:00:05]} 23. Qa2 {[%emt 0:00:02]} Bf6 {[%emt 0:05:34]} 24. d4 {[%emt 0:02:33]} Nxc4 {[%emt 0:00:56]} 25. Qxc4 {[%emt 0:00:34]} Qb7 {[%emt 0:03:42]} 26. e5 {[%emt 0:06:09]} dxe5 {[%emt 0:01:30]} 27. Nxe5 {[%emt 0:00:11]} Bxe5 {[%emt 0:00:31]} 28. dxe5 {[%emt 0:00:03]} f3 {[%emt 0:06:15]} 29. Qc5 {[%emt 0:24:36]} Rfd8 {[%emt 0:02:03]} 30. Rxa7 {[%emt 0:00:06]} Rxa7 {[%emt 0:00:06]} 31. Rxa7 {[%emt 0:00:03]} Qb8 {[%emt 0:01:28]} 32. Nxf3 {[%emt 0:00:12]} Rd5 {[%emt 0:03:30]} 33. Qe7 {[%emt 0:00:23]} Rd1+ {[%emt 0:01:23]} 34. Kh2 {[%emt 0:00:45]} Qb6 {[%emt 0:03:22]} 35. Kg3 {[%emt 0:08:58]} Rd3 {[%emt 0:00:53]} 36. e6 {[%emt 0:03:52]} Rxf3+ {[%emt 0:00:36]} 37. Kxf3 {[%emt 0:00:08]} 1-0

[Event "RUS-chTW Premier 2019"]
[Site "Sochi"]
[Date "2019.05.01"]
[Round "1.11"]
[White "Chan, Naruna"]
[Black "Belenkaya, Dina"]
[Result "0-1"]
[ECO "B12"]
[WhiteElo "1985"]
[BlackElo "2315"]
[Annotator "NA"]
[PlyCount "118"]
[EventDate "2019.04.30"]
[EventType "team-tourn"]
[EventCountry "RUS"]
[SourceTitle "playchess.com"]
[Source "ChessBase"]
[SourceQuality "1"]
[TimeControl "40/5400+30:1800+30"]

1. e4 {[%emt 0:00:00]} c6 {[%emt 0:00:00]} 2. d4 {[%emt 0:00:00]} d5 {[%emt 0:00:00]} 3. e5 {[%emt 0:00:00]} Bf5 {[%emt 0:00:00]} 4. h4 {[%emt 0:00:00]} h5 {[%emt 0:00:00]} 5. c4 {[%emt 0:00:26]} e6 {[%emt 0:02:57]} 6. Nc3 {[%emt 0:00:06]} Ne7 {[%emt 0:05:58]} 7. Nge2 {[%emt 0:05:55]} dxc4 {[%emt 0:02:06]} 8. Ng3 {[%emt 0:04:32]} Bg6 {[%emt 0:05:16]} 9. Bxc4 {[%emt 0:02:00]} Nf5 {[%emt 0:00:48]} 10. Nxf5 {[%emt 0:04:40]} Bxf5 {[%emt 0:00:19]} 11. Bg5 {[%emt 0:04:18]} Be7 {[%emt 0:03:29]} 12. Qd2 {[%emt 0:05:08]} Nd7 {[%emt 0:00:49]} 13. Bxe7 {[%emt 0:11:14]} Qxe7 {[%emt 0:00:06]} 14. Bd3 {[%emt 0:00:10]} O-O-O {[%emt 0:05:57]} 15. Bxf5 {[%emt 0:08:40]} exf5 {[%emt 0:00:02]} 16. Qe3 {[%emt 0:16:17]} Nb6 {[%emt 0:02:25]} 17. O-O-O {[%emt 0:05:00]} g6 {[%emt 0:01:04]} 18. Rd3 {[%emt 0:06:54]} Rd7 {[%emt 0:03:07]} 19. g3 {[%emt 0:00:56]} Rhd8 {[%emt 0:00:29]} 20. Rhd1 {[%emt 0:01:47]} Qe6 {[%emt 0:01:13]} 21. Kb1 {[%emt 0:02:17]} Kb8 {[%emt 0:00:58]} 22. Ne2 {[%emt 0:02:52]} Nd5 {[%emt 0:01:08]} 23. Qd2 {[%emt 0:00:22]} Qe7 {[%emt 0:02:26]} 24. a3 {[%emt 0:01:56]} Nc7 {[%emt 0:01:11]} 25. Qc2 {[%emt 0:00:58]} Ne6 {[%emt 0:01:23]} 26. Qc4 {[%emt 0:01:07]} Rc7 {[%emt 0:06:19]} 27. Nc3 {[%emt 0:01:31]} g5 {[%emt 0:19:18]} 28. hxg5 {[%emt 0:01:37]} Qxg5 {[%emt 0:00:23]} 29. Qa4 {[%emt 0:01:35]} Rcd7 {[%emt 0:03:16]} 30. Qc4 {[%emt 0:01:21]} Qg4 {[%emt 0:03:56]} 31. f4 {[%emt 0:04:57]} h4 {[%emt 0:00:55]} 32. gxh4 {[%emt 0:01:00]} Nxf4 {[%emt 0:01:00]} 33. R3d2 {[%emt 0:00:26]} Ne6 {[%emt 0:02:39]} 34. h5 {[%emt 0:02:37]} Rh8 {[%emt 0:05:52]} 35. Qb4 {[%emt 0:02:27]} Rxh5 {[%emt 0:03:02]} 36. d5 {[%emt 0:00:50]} Qxb4 {[%emt 0:01:22]} 37. axb4 {[%emt 0:00:04]} cxd5 {[%emt 0:00:38]} 38. Nxd5 {[%emt 0:00:35]} f4 {[%emt 0:02:51]} 39. Rc1 {[%emt 0:01:12]} Rh8 {[%emt 0:03:46]} 40. Rdd1 {[%emt 0:00:00]} Rhd8 {[%emt 0:00:00]} 41. Nc3 {[%emt 0:01:41]} Rxd1 {[%emt 0:03:25]} 42. Rxd1 {[%emt 0:00:49]} Rxd1+ {[%emt 0:00:07]} 43. Nxd1 {[%emt 0:00:04]} Kc7 {[%emt 0:04:02]} 44. Kc2 {[%emt 0:01:12]} Kc6 {[%emt 0:02:59]} 45. Nc3 {[%emt 0:00:23]} f3 {[%emt 0:17:37]} 46. Kd2 {[%emt 0:04:47]} Nf4 {[%emt 0:00:19]} 47. Ne4 {[%emt 0:05:52]} Kd5 {[%emt 0:01:10]} 48. Ke3 {[%emt 0:00:35]} Ng6 {[%emt 0:04:59]} 49. Nd6 {[%emt 0:03:08]} Nxe5 {[%emt 0:00:52]} 50. Nxb7 {[%emt 0:01:10]} Kc4 {[%emt 0:00:12]} 51. Nd6+ {[%emt 0:04:44]} Kxb4 {[%emt 0:00:11]} 52. Ne4 {[%emt 0:00:20]} Kb3 {[%emt 0:01:16]} 53. Kf4 {[%emt 0:00:17]} f6 {[%emt 0:01:14]} 54. Kf5 {[%emt 0:00:25]} Kxb2 {[%emt 0:00:41]} 55. Kxf6 {[%emt 0:05:45]} Nd3 {[%emt 0:00:58]} 56. Kf5 {[%emt 0:01:34]} f2 {[%emt 0:00:37]} 57. Ng3 {[%emt 0:00:36]} a5 {[%emt 0:00:28]} 58. Ke4 {[%emt 0:00:13]} Kc2 {[%emt 0:02:23]} 59. Nf1 {[%emt 0:01:43]} a4 {[%emt 0:00:16]} 0-1

[Event "RUS-chTW Premier 2019"]
[Site "Sochi"]
[Date "2019.05.01"]
[Round "1.12"]
[White "Styazhkina, Anna"]
[Black "Azimova, Karina"]
[Result "1/2-1/2"]
[ECO "B27"]
[WhiteElo "2272"]
[BlackElo "2072"]
[Annotator "NA"]
[PlyCount "120"]
[EventDate "2019.04.30"]
[EventType "team-tourn"]
[EventCountry "RUS"]
[SourceTitle "playchess.com"]
[Source "ChessBase"]
[SourceQuality "1"]
[TimeControl "40/5400+30:1800+30"]

1. e4 {[%emt 0:00:00]} c5 {[%emt 0:00:00]} 2. Nf3 {[%emt 0:00:00]} g6 {[%emt 0:00:00]} 3. c4 {[%emt 0:00:09]} Nc6 {[%emt 0:00:49]} 4. d4 {[%emt 0:00:52]} cxd4 {[%emt 0:00:15]} 5. Nxd4 {[%emt 0:00:20]} Nf6 {[%emt 0:00:16]} 6. Nc3 {[%emt 0:00:32]} d6 {[%emt 0:00:25]} 7. Be2 {[%emt 0:00:36]} Nxd4 {[%emt 0:00:22]} 8. Qxd4 {[%emt 0:00:07]} Bg7 {[%emt 0:00:03]} 9. Be3 {[%emt 0:00:11]} O-O {[%emt 0:00:10]} 10. Qd2 {[%emt 0:00:21]} a5 {[%emt 0:00:17]} 11. Rd1 {[%emt 0:00:16]} a4 {[%emt 0:00:12]} 12. c5 {[%emt 0:08:07]} Be6 {[%emt 0:00:25]} 13. cxd6 {[%emt 0:00:44]} Qxd6 {[%emt 0:01:02]} 14. Qxd6 {[%emt 0:01:16]} exd6 {[%emt 0:00:01]} 15. a3 {[%emt 0:08:38]} Rfd8 {[%emt 0:02:30]} 16. Bb6 {[%emt 0:07:36]} Rd7 {[%emt 0:00:06]} 17. f3 {[%emt 0:10:47]} Bb3 {[%emt 0:03:07]} 18. Rd2 {[%emt 0:05:52]} d5 {[%emt 0:15:34]} 19. Bb5 {[%emt 0:20:17]} Re7 {[%emt 0:01:15]} 20. Re2 {[%emt 0:01:02]} dxe4 {[%emt 0:04:03]} 21. fxe4 {[%emt 0:05:53]} Rc8 {[%emt 0:17:47]} 22. O-O {[%emt 0:05:22]} Bc4 {[%emt 0:13:38]} 23. Bxc4 {[%emt 0:02:57]} Rxc4 {[%emt 0:00:01]} 24. Rd1 {[%emt 0:05:56]} Nd7 {[%emt 0:15:12]} 25. Bd8 {[%emt 0:01:00]} Kf8 {[%emt 0:04:02]} 26. Bxe7+ {[%emt 0:01:31]} Kxe7 {[%emt 0:00:01]} 27. Nd5+ {[%emt 0:02:01]} Ke6 {[%emt 0:00:18]} 28. Red2 {[%emt 0:03:23]} Nc5 {[%emt 0:01:32]} 29. Nc7+ {[%emt 0:02:37]} Ke7 {[%emt 0:00:14]} 30. Nd5+ {[%emt 0:03:41]} Ke6 {[%emt 0:00:01]} 31. Nb6 {[%emt 0:00:45]} Rxe4 {[%emt 0:00:14]} 32. Rd6+ {[%emt 0:00:06]} Kf5 {[%emt 0:03:10]} 33. R6d5+ {[%emt 0:00:39]} Re5 {[%emt 0:00:01]} 34. Kf1 {[%emt 0:02:10]} Ke6 {[%emt 0:02:01]} 35. Rxe5+ {[%emt 0:00:32]} Bxe5 {[%emt 0:00:01]} 36. Nc4 {[%emt 0:00:57]} Bxh2 {[%emt 0:00:12]} 37. Kf2 {[%emt 0:00:39]} b5 {[%emt 0:02:05]} 38. Ne3 {[%emt 0:00:30]} f5 {[%emt 0:03:41]} 39. Nc2 {[%emt 0:00:27]} Be5 {[%emt 0:09:27]} 40. Nd4+ {[%emt 0:00:00]} Bxd4+ {[%emt 0:00:00]} 41. Rxd4 {[%emt 0:00:12]} Ke5 {[%emt 0:02:02]} 42. Ke3 {[%emt 0:14:38]} Ne4 {[%emt 0:01:49]} 43. Rd7 {[%emt 0:01:11]} h6 {[%emt 0:04:28]} 44. Re7+ {[%emt 0:03:50]} Kf6 {[%emt 0:01:09]} 45. Rc7 {[%emt 0:00:46]} Ke5 {[%emt 0:10:00]} 46. Rc6 {[%emt 0:02:35]} g5 {[%emt 0:00:17]} 47. Rxh6 {[%emt 0:01:19]} Nd6 {[%emt 0:00:01]} 48. Kd3 {[%emt 0:01:36]} Nc4 {[%emt 0:00:16]} 49. Kc3 {[%emt 0:01:17]} Kf4 {[%emt 0:01:02]} 50. Rh3 {[%emt 0:03:09]} g4 {[%emt 0:01:13]} 51. Rd3 {[%emt 0:00:28]} Ne3 {[%emt 0:02:15]} 52. g3+ {[%emt 0:01:06]} Ke4 {[%emt 0:00:36]} 53. Kd2 {[%emt 0:03:24]} Nc4+ {[%emt 0:00:52]} 54. Kc3 {[%emt 0:00:21]} Nxb2 {[%emt 0:05:29]} 55. Rd4+ {[%emt 0:00:16]} Ke3 {[%emt 0:01:08]} 56. Rf4 {[%emt 0:01:14]} Nc4 {[%emt 0:01:55]} 57. Rxf5 {[%emt 0:00:51]} Nxa3 {[%emt 0:00:27]} 58. Rf4 {[%emt 0:00:31]} Nc4 {[%emt 0:02:19]} 59. Rxg4 {[%emt 0:00:33]} Kf3 {[%emt 0:00:18]} 60. Rg5 {[%emt 0:00:45]} Nd6 {[%emt 0:01:39]} 1/2-1/2

[Event "RUS-chTW Premier 2019"]
[Site "Sochi"]
[Date "2019.05.01"]
[Round "1.13"]
[White "Badelka, Olga"]
[Black "Nasybullina, Alfia"]
[Result "1-0"]
[ECO "A20"]
[WhiteElo "2383"]
[BlackElo "2065"]
[Annotator "NA"]
[PlyCount "119"]
[EventDate "2019.04.30"]
[EventType "team-tourn"]
[EventCountry "RUS"]
[SourceTitle "playchess.com"]
[Source "ChessBase"]
[SourceQuality "1"]
[TimeControl "40/5400+30:1800+30"]

1. c4 {[%emt 0:00:00]} e5 {[%emt 0:00:00]} 2. g3 {[%emt 0:00:13]} d5 {[%emt 0:01:38]} 3. cxd5 {[%emt 0:00:49]} Qxd5 {[%emt 0:00:07]} 4. Nf3 {[%emt 0:00:35]} Nc6 {[%emt 0:02:51]} 5. Nc3 {[%emt 0:01:51]} Qd8 {[%emt 0:01:04]} 6. Bg2 {[%emt 0:01:14]} Nf6 {[%emt 0:00:06]} 7. O-O {[%emt 0:00:51]} Be7 {[%emt 0:01:53]} 8. a3 {[%emt 0:01:25]} O-O {[%emt 0:05:36]} 9. b4 {[%emt 0:00:40]} e4 {[%emt 0:06:36]} 10. Ng5 {[%emt 0:02:50]} Bf5 {[%emt 0:10:47]} 11. Bb2 {[%emt 0:09:28]} Qd4 {[%emt 0:14:43]} 12. Qc1 {[%emt 0:07:31]} Rad8 {[%emt 0:19:58]} 13. Ncxe4 {[%emt 0:03:14]} Nxe4 {[%emt 0:01:35]} 14. Nxe4 {[%emt 0:01:25]} Qd7 {[%emt 0:00:39]} 15. d3 {[%emt 0:07:59]} Bh3 {[%emt 0:03:39]} 16. b5 {[%emt 0:03:56]} Bxg2 {[%emt 0:04:30]} 17. Kxg2 {[%emt 0:00:56]} Nd4 {[%emt 0:00:17]} 18. Bxd4 {[%emt 0:02:18]} Qxd4 {[%emt 0:00:05]} 19. Qxc7 {[%emt 0:00:42]} Rd7 {[%emt 0:00:05]} 20. Qc4 {[%emt 0:09:17]} Qxc4 {[%emt 0:01:12]} 21. dxc4 {[%emt 0:00:05]} Rd4 {[%emt 0:00:15]} 22. Nc3 {[%emt 0:00:19]} Rxc4 {[%emt 0:01:11]} 23. Nd5 {[%emt 0:00:04]} Bc5 {[%emt 0:04:02]} 24. a4 {[%emt 0:01:53]} Rd8 {[%emt 0:00:47]} 25. Nf4 {[%emt 0:01:39]} g5 {[%emt 0:03:30]} 26. Nd3 {[%emt 0:01:30]} Bd4 {[%emt 0:00:17]} 27. Ra2 {[%emt 0:00:19]} Rdc8 {[%emt 0:00:20]} 28. Rb1 {[%emt 0:05:06]} Rc2 {[%emt 0:01:24]} 29. Rxc2 {[%emt 0:00:55]} Rxc2 {[%emt 0:00:05]} 30. Rb4 {[%emt 0:01:46]} Bf6 {[%emt 0:01:16]} 31. Kf3 {[%emt 0:01:15]} Kg7 {[%emt 0:02:17]} 32. Re4 {[%emt 0:02:23]} h5 {[%emt 0:01:37]} 33. h4 {[%emt 0:03:14]} a6 {[%emt 0:02:26]} 34. hxg5 {[%emt 0:01:10]} Bxg5 {[%emt 0:00:09]} 35. Re5 {[%emt 0:01:31]} Kg6 {[%emt 0:02:29]} 36. bxa6 {[%emt 0:00:23]} bxa6 {[%emt 0:00:04]} 37. Ra5 {[%emt 0:00:10]} h4 {[%emt 0:02:42]} 38. Rxa6+ {[%emt 0:00:10]} Kg7 {[%emt 0:01:07]} 39. gxh4 {[%emt 0:00:35]} Bxh4 {[%emt 0:00:12]} 40. a5 {[%emt 0:00:00]} Ra2 {[%emt 0:00:00]} 41. Ra8 {[%emt 0:00:41]} Bf6 {[%emt 0:01:50]} 42. e3 {[%emt 0:01:39]} Rd2 {[%emt 0:02:45]} 43. Nc5 {[%emt 0:02:37]} Bh4 {[%emt 0:02:03]} 44. Ne4 {[%emt 0:00:18]} Ra2 {[%emt 0:02:21]} 45. a6 {[%emt 0:01:00]} Be7 {[%emt 0:01:14]} 46. Nc3 {[%emt 0:02:18]} Ra5 {[%emt 0:00:31]} 47. Ke4 {[%emt 0:00:25]} Bh4 {[%emt 0:02:13]} 48. f4 {[%emt 0:01:20]} Be1 {[%emt 0:01:36]} 49. Nd5 {[%emt 0:00:38]} Bd2 {[%emt 0:01:46]} 50. f5 {[%emt 0:00:24]} Ra3 {[%emt 0:00:35]} 51. f6+ {[%emt 0:03:12]} Kh7 {[%emt 0:00:07]} 52. a7 {[%emt 0:00:36]} Be1 {[%emt 0:01:45]} 53. Ne7 {[%emt 0:00:30]} Bc3 {[%emt 0:03:21]} 54. Rf8 {[%emt 0:01:24]} Bxf6 {[%emt 0:01:03]} 55. Rxf7+ {[%emt 0:00:19]} Bg7 {[%emt 0:00:12]} 56. Nf5 {[%emt 0:00:08]} Ra4+ {[%emt 0:00:09]} 57. Kd5 {[%emt 0:01:56]} Kg6 {[%emt 0:00:14]} 58. Rxg7+ {[%emt 0:00:32]} Kxf5 {[%emt 0:00:07]} 59. Kc6 {[%emt 0:00:04]} Ke6 {[%emt 0:01:22]} 60. Kb7 {[%emt 0:00:08]} 1-0

[Event "RUS-chTW Premier 2019"]
[Site "Sochi"]
[Date "2019.05.01"]
[Round "1.14"]
[White "Mukhina, Jana"]
[Black "Dordzhieva, Dinara"]
[Result "0-1"]
[ECO "B80"]
[WhiteElo "2098"]
[BlackElo "2280"]
[Annotator "NA"]
[PlyCount "64"]
[EventDate "2019.04.30"]
[EventType "team-tourn"]
[EventCountry "RUS"]
[SourceTitle "playchess.com"]
[Source "ChessBase"]
[SourceQuality "1"]
[TimeControl "40/5400+30:1800+30"]

1. e4 {[%emt 0:00:00]} c5 {[%emt 0:00:00]} 2. Nf3 {[%emt 0:00:00]} e6 {[%emt 0:00:00]} 3. d4 {[%emt 0:00:00]} cxd4 {[%emt 0:00:00]} 4. Nxd4 {[%emt 0:00:00]} Nf6 {[%emt 0:00:02]} 5. Nc3 {[%emt 0:00:01]} d6 {[%emt 0:00:06]} 6. Be3 {[%emt 0:01:36]} a6 {[%emt 0:00:12]} 7. f4 {[%emt 0:00:40]} Be7 {[%emt 0:01:17]} 8. Qf3 {[%emt 0:02:07]} Qc7 {[%emt 0:01:16]} 9. Rg1 {[%emt 0:03:59]} b5 {[%emt 0:15:37]} 10. a3 {[%emt 0:06:37]} Bb7 {[%emt 0:00:50]} 11. Bd3 {[%emt 0:06:31]} Nc6 {[%emt 0:07:43]} 12. g4 {[%emt 0:04:35]} Nd7 {[%emt 0:04:48]} 13. g5 {[%emt 0:06:56]} Nc5 {[%emt 0:22:13]} 14. h4 {[%emt 0:03:50]} b4 {[%emt 0:11:22]} 15. Nce2 {[%emt 0:05:08]} bxa3 {[%emt 0:01:12]} 16. bxa3 {[%emt 0:04:05]} Nxd4 {[%emt 0:03:55]} 17. Bxd4 {[%emt 0:03:27]} e5 {[%emt 0:03:57]} 18. Bc3 {[%emt 0:05:18]} O-O {[%emt 0:10:29]} 19. h5 {[%emt 0:04:36]} d5 {[%emt 0:03:27]} 20. exd5 {[%emt 0:04:35]} e4 {[%emt 0:04:01]} 21. Bxe4 {[%emt 0:02:16]} Nxe4 {[%emt 0:00:07]} 22. Qxe4 {[%emt 0:00:10]} Bc5 {[%emt 0:00:20]} 23. Rg3 {[%emt 0:08:08]} Rfe8 {[%emt 0:01:42]} 24. Qg2 {[%emt 0:04:17]} Qxf4 {[%emt 0:01:45]} 25. g6 {[%emt 0:03:47]} fxg6 {[%emt 0:00:55]} 26. hxg6 {[%emt 0:00:07]} h6 {[%emt 0:00:14]} 27. Rf3 {[%emt 0:10:40]} Qc4 {[%emt 0:00:49]} 28. Rd1 {[%emt 0:00:53]} Rad8 {[%emt 0:01:11]} 29. Rh3 {[%emt 0:08:29]} Rxd5 {[%emt 0:02:05]} 30. Rxd5 {[%emt 0:00:27]} Bxd5 {[%emt 0:00:02]} 31. Qh2 {[%emt 0:00:57]} Qe4 {[%emt 0:01:00]} 32. Rh5 {[%emt 0:01:16]} Bd6 {[%emt 0:00:55]} 0-1